bitfinex/quotes_SOLUSD_20250210
["timestamp","ask_amount","ask_price","bid_price","bid_amount"]
[1739212948422,17.2932,203.13,203.06,10.21115623]
[1739212948742,17.2932,203.13,203.03,81.2]
[1739212948743,10.21115623,203.1,203.02,10.21115623]
[1739212948943,0.92341215,203.09,203.02,10.21115623]
[1739212949140,0.92341215,203.09,203.04,10.21115623]
[1739212949542,4.9241,203.08,203.04,10.21115623]
[1739212950248,4.9241,203.08,203.02,10.21115623]
[1739212951930,5.84753692,203.08,203.02,10.21115623]
[1739212952851,4.9241,203.08,203.02,10.21115623]
[1739212953351,4.9241,203.08,203.04,10.21115623]
[1739212954350,4.9236,203.1,203.06,10.21115623]
[1739212954560,0.98625192,203.13,203.06,10.21115623]
[1739212954748,0.063,203.13,203.1,10.21115623]
[1739212954938,0.063,203.13,203.12,10.21115623]
[1739212957649,0.063,203.13,203.06,137.2]
[1739212957831,10.21115623,203.12,203.05,91.41115623]
[1739212958041,0.063,203.13,203.05,91.41115623]
[1739212958258,0.98618894,203.13,203.05,91.41115623]
[1739212958568,0.98618894,203.13,203.07,10.21115623]
[1739212958766,0.98618894,203.13,203.06,10.21115623]
[1739212958931,0.98618894,203.13,203.05,81.2]
[1739212958932,11.19734517,203.13,203.05,91.41115623]
[1739212959130,10.21115623,203.12,203.05,81.2]
[1739212959370,0.92334048,203.11,203.05,81.2]
[1739212959570,10.21115623,203.1,203.05,81.2]
[1739212959733,0.92335913,203.09,203.05,81.2]
[1739212960457,0.92335913,203.09,203.02,228.64115623]
[1739212960651,11.13451536,203.09,203.02,218.43]
[1739212961267,10.21115623,203.08,203.02,218.43]
[1739212961553,0.92347669,203.07,203.02,81.23]
[1739212961738,0.92347669,203.07,203.02,0.03]
[1739212961739,4.9246,203.06,203.02,0.03]
[1739212961931,11.13468,203.05,203.02,0.03]
[1739212962437,0.92352377,203.05,203.02,0.03]
[1739212963461,4.9246,203.06,203.02,0.03]
[1739212967859,5.84858811,203.05,203.02,0.03]
[1739212968645,4.9251,203.05,203.02,0.03]
[1739212969057,4.9246,203.06,203.02,0.03]
[1739212969251,4.9243,203.08,203.03,10.21115623]
[1739212969970,0.92348937,203.1,203.03,10.21115623]
[1739212970184,4.9239,203.09,203.03,10.21115623]
[1739212970346,4.9239,203.09,203.03,15.13645623]
[1739212970546,4.9239,203.09,203.03,10.21115623]
[1739212972878,4.9236,203.1,203.05,10.21115623]
[1739212973084,11.92205623,203.13,203.07,10.21115623]
[1739212973250,4.9233,203.12,203.07,10.21115623]
[1739212973652,5.84646185,203.12,203.06,10.21115623]
[1739212974878,18.15436185,203.12,203.04,10.21115623]
[1739212975084,10.21115623,203.11,203.04,10.21115623]
[1739212975378,0.92332972,203.1,203.04,10.21115623]
[1739212975971,0.92332972,203.1,203.03,218.4]
[1739212976579,0.92332972,203.1,203.04,10.21115623]
[1739212976757,5.84668059,203.12,203.05,10.21115623]
[1739212978263,0.063,203.13,203.07,10.21115623]
[1739212978790,0.063,203.13,203.08,10.21115623]
[1739212980711,0.063,203.13,203.1,10.21115623]
[1739212980981,0.063,203.13,203.11,10.21115623]
[1739212981899,0.063,203.13,203.08,137.2]
[1739212982080,10.27415623,203.13,203.08,137.2]
[1739212982391,11.13439092,203.12,203.05,91.41115623]
[1739212983689,4.9234,203.11,203.05,91.41115623]
[1739212983873,5.84671419,203.11,203.05,91.41115623]
[1739212984394,4.9234,203.11,203.05,91.41115623]
[1739212984590,4.9232,203.12,203.05,91.41115623]
[1739212984793,4.9232,203.12,203.07,10.21115623]
[1739212986286,0.063,203.13,203.07,10.21115623]
[1739212986475,4.9859,203.13,203.07,10.21115623]
[1739212987385,0.92319431,203.12,203.05,91.41115623]
[1739212987687,11.13435054,203.12,203.05,91.41115623]
[1739212989489,4.9234,203.11,203.05,91.41115623]
[1739212989903,0.92329554,203.1,203.03,10.21115623]
[1739212990067,10.21115623,203.08,203.02,218.43]
[1739212990409,10.21115623,203.09,203.02,81.23]
[1739212990574,0.92339452,203.08,203.02,91.44115623]
[1739212990778,0.92339452,203.09,203.02,91.44115623]
[1739212990979,11.13455075,203.09,203.02,91.44115623]
[1739212991498,4.9241,203.08,203.02,91.44115623]
[1739212991700,4.9241,203.08,203.05,0.03]
[1739212991901,5.84729452,203.09,203.05,0.03]
[1739212992602,4.9234,203.11,203.05,0.03]
[1739212992796,5.84664141,203.11,203.05,0.03]
[1739212993095,4.9234,203.11,203.05,0.03]
[1739212993907,0.9232413,203.1,203.05,0.03]
[1739212994408,10.21115623,203.09,203.05,0.03]
[1739212994708,11.13466355,203.08,203.05,0.03]
[1739212995390,10.21115623,203.07,203.05,0.03]
[1739212995591,0.92352003,203.06,203.05,0.03]
[1739212997198,16.05927626,203.06,203.05,0.03]
[1739212998687,1.6115,203.05,203.02,0.03]
[1739212998983,10.21115623,203.03,203.02,0.03]
[1739212999595,2.53521031,203.05,203.02,0.03]
[1739212999993,10.21115623,203.04,203.02,0.03]
[1739213000317,0.92371107,203.03,203.02,0.03]
[1739213000909,5.84901107,203.03,203.02,0.03]
[1739213002710,16.0601673,203.03,203.02,0.03]
[1739213003718,4.9253,203.03,203.02,0.03]
[1739213005514,4.9251,203.04,203.02,0.03]
[1739213005808,0.92363335,203.03,203.02,0.03]
[1739213007812,5.84872129,203.04,203.02,0.03]
[1739213008810,16.05987752,203.04,203.02,0.03]
[1739213013123,4.9251,203.04,203.02,0.03]
[1739213013625,0.92354813,203.03,203.02,0.03]
[1739213015303,5.84884813,203.03,203.02,0.03]
[1739213016316,19.26069666,203.03,203.02,0.0001]
[1739213016720,29.47185289,203.03,203.02,0.0001]
[1739213024229,16.06000436,203.03,203.02,0.0001]
[1739213028131,29.47185289,203.03,203.02,0.0001]
[1739213031426,20.0,202.99,202.95,0.03]
[1739213031619,6.53804159,202.96,202.95,0.03]
[1739213032617,11.46504159,202.96,202.95,0.03]
[1739213033634,15.14186698,202.96,202.95,0.03]
[1739213051637,4.927,202.96,202.95,0.03]
[1739213053251,11.13882987,202.98,202.95,0.03]
[1739213053438,4.9268,202.97,202.95,0.03]
[1739213055665,0.92388903,202.96,202.95,0.03]
[1739213055962,7.45928055,202.96,202.95,0.03]
[1739213057160,12.38628055,202.96,202.95,0.03]
[1739213058460,25.79812908,202.96,202.95,0.03]
[1739213061063,13.41184853,202.95,202.89,0.03]
[1739213061371,6.53539152,202.9,202.89,0.03]
[1739213063455,11.46389152,202.9,202.89,0.03]
[1739213064538,23.78519152,202.9,202.84,0.03]
[1739213064745,6.53539152,202.86,202.84,0.03]
[1739213065042,0.9244394,202.85,202.84,0.03]
[1739213065561,0.9244394,202.85,202.82,7.7739]
[1739213066140,6.53539152,202.86,202.82,7.7739]
[1739213067558,4.9297,202.85,202.82,7.7739]
[1739213067871,4.7997,202.85,202.82,7.7739]
[1739213068766,5.72411465,202.85,202.81,81.23]
[1739213068950,5.72411465,202.85,202.81,0.03]
[1739213070644,6.53539152,202.84,202.81,0.03]
[1739213070844,0.924568,202.83,202.81,0.03]
[1739213072082,4.7997,202.85,202.81,0.03]
[1739213072280,4.9295,202.86,202.81,0.03]
[1739213073057,4.9295,202.86,202.8,5.56539152]
[1739213074061,4.9295,202.86,202.78,11.46679152]
[1739213074248,4.9295,202.86,202.78,148.66679152]
[1739213074555,0.92443147,202.85,202.78,143.73539152]
[1739213074763,7.45982299,202.85,202.78,137.2]
[1739213074967,6.53539152,202.83,202.78,137.2]
[1739213075167,0.92458284,202.82,202.78,137.2]
[1739213075352,0.92458284,202.82,202.78,137.23]
[1739213075976,4.9307,202.81,202.78,137.23]
[1739213076182,6.53539152,202.83,202.78,0.03]
[1739213076362,4.9305,202.82,202.78,0.03]
[1739213076546,5.85506064,202.82,202.78,0.03]
[1739213076756,6.53539152,202.8,202.78,0.03]
[1739213077050,0.92481191,202.79,202.78,0.03]
[1739213078290,5.85601191,202.79,202.78,0.03]
[1739213080362,12.39140343,202.79,202.78,0.03]
[1739213087501,25.80325196,202.79,202.78,0.03]
[1739213088573,12.39140343,202.79,202.78,0.03]
[1739213092317,39.94724005,202.77,202.76,0.03]
[1739213093505,13.41184853,202.76,202.75,0.03]
[1739213093720,14.33693457,202.76,202.75,0.03]
[1739213095511,5.85698604,202.76,202.75,0.03]
[1739213096401,26.53539152,202.77,202.75,0.03]
[1739213096402,27.460272,202.77,202.75,0.03]
[1739213096727,12.39139361,202.79,202.75,0.03]
[1739213098714,0.92480209,202.79,202.75,0.03]
[1739213099296,4.931,202.8,202.75,0.03]
[1739213099495,7.46009613,202.82,202.75,0.03]
[1739213099692,0.063,202.83,202.78,6.53539152]
[1739213099921,0.063,202.83,202.8,6.53539152]
[1739213100299,0.063,202.83,202.82,6.53539152]
[1739213100493,0.063,202.83,202.82,8.13819152]
[1739213101028,0.063,202.83,202.82,1.6028]
[1739213102233,0.063,202.83,202.81,6.1124]
[1739213103527,0.063,202.83,202.77,8.07769152]
[1739213103730,4.9932,202.83,202.77,8.07769152]
[1739213108219,0.063,202.83,202.82,6.53539152]
[1739213109021,0.063,202.83,202.82,224.93539152]
[1739213109201,0.063,202.83,202.82,272.44760613]
[1739213109532,0.063,202.83,202.82,246.30604005]
[1739213110108,0.063,202.83,202.82,232.89419152]
[1739213111627,0.063,202.83,202.82,224.8042]
[1739213112137,0.063,202.83,202.78,6.53539152]
[1739213112637,0.98754868,202.83,202.77,89.1588]
[1739213112804,0.063,202.83,202.77,89.1588]
[1739213113632,0.063,202.83,202.77,99.3825266]
[1739213115424,0.063,202.83,202.79,10.2237266]
[1739213122574,0.063,202.83,202.77,236.5825266]
[1739213123472,4.9932,202.83,202.77,236.5825266]
[1739213126270,4.9932,202.83,202.77,99.3825266]
[1739213126966,4.9932,202.83,202.77,97.8279266]
[1739213127266,0.92452173,202.82,202.77,81.2]
[1739213128659,4.9307,202.81,202.77,81.2]
[1739213131278,4.9307,202.81,202.76,0.03]
[1739213131471,0.92460042,202.8,202.76,0.03]
[1739213131769,4.9307,202.81,202.76,0.03]
[1739213139894,0.92468689,202.82,202.76,0.03]
[1739213140764,0.063,202.83,202.77,6.54488038]
[1739213140971,4.9934,202.83,202.77,6.54488038]
[1739213141277,5.91790074,202.83,202.77,6.54488038]
[1739213142083,12.46278112,202.83,202.76,0.03]
[1739213143092,6.54488038,202.79,202.76,0.03]
[1739213143255,6.54488038,202.77,202.76,0.03]
[1739213144663,11.47648038,202.77,202.76,0.03]
[1739213145797,24.88832891,202.77,202.75,0.03]
[1739213146093,0.92503957,202.76,202.75,0.03]
[1739213146284,5.85693957,202.76,202.75,0.03]
[1739213148392,12.40181995,202.76,202.75,0.03]
[1739213151195,7.46991995,202.76,202.75,0.03]
[1739213151502,7.46973092,202.78,202.75,0.03]
[1739213152197,12.40133092,202.78,202.75,0.03]
[1739213152508,7.46973092,202.78,202.75,0.03]
[1739213154080,12.40123092,202.78,202.75,0.03]
[1739213155702,6.54488038,202.76,202.75,0.03]
[1739213156907,12.40123092,202.78,202.75,0.03]
[1739213160198,4.9315,202.78,202.75,0.03]
[1739213160535,12.40084376,202.79,202.75,0.03]
[1739213160822,4.9312,202.79,202.75,0.03]
[1739213161031,0.063,202.78,202.75,0.03]
[1739213166628,4.9944,202.78,202.75,0.03]
[1739213167225,7.46961325,202.77,202.75,0.03]
[1739213168623,0.063,202.78,202.75,0.03]
[1739213169522,4.9946,202.78,202.75,0.03]
[1739213170031,0.063,202.78,202.75,0.03]
[1739213170206,0.063,202.78,202.76,6.54488038]
[1739213174227,0.063,202.78,202.77,6.54488038]
[1739213174724,0.063,202.78,202.76,6.54488038]
[1739213176038,0.063,202.78,202.76,224.94488038]
[1739213177632,0.063,202.78,202.77,8.09558038]
[1739213177834,0.063,202.78,202.77,21.50742891]
[1739213178134,0.063,202.79,202.77,21.50742891]
[1739213178337,0.063,202.79,202.78,19.95672891]
[1739213178639,0.063,202.79,202.78,6.54488038]
[1739213180139,0.063,202.79,202.78,11.47628038]
[1739213181934,0.063,202.79,202.78,229.87628038]
[1739213185017,0.063,202.79,202.78,224.94488038]
[1739213186020,0.063,202.79,202.78,229.87628038]
[1739213186419,0.063,202.79,202.78,224.94488038]
[1739213186639,0.063,202.79,202.78,218.4]
[1739213187639,0.063,202.79,202.78,81.2]
[1739213188536,0.063,202.79,202.75,0.03]
[1739213188835,6.54488038,202.78,202.75,0.03]
[1739213189042,0.063,202.79,202.75,0.03]
[1739213189043,7.46972249,202.77,202.75,0.03]
[1739213189914,4.9319,202.76,202.75,0.03]
[1739213199459,11.47678038,202.76,202.75,0.03]
[1739213199640,5.85679442,202.76,202.75,0.03]
[1739213205040,12.4016748,202.76,202.75,0.03]
[1739213211736,25.81352333,202.76,202.75,0.03]
[1739213221377,12.4016748,202.76,202.75,0.03]
[1739213222680,5.85679442,202.76,202.75,0.03]
[1739213222877,4.9319,202.76,202.75,0.03]
[1739213223675,12.46431949,202.78,202.75,0.03]
[1739213223979,0.063,202.78,202.75,0.03]
[1739213224278,0.063,202.78,202.75,6.57488038]
[1739213224484,0.063,202.78,202.75,0.03]
[1739213225087,0.063,202.78,202.75,6.57488038]
[1739213225381,0.063,202.78,202.77,6.54488038]
[1739213225555,0.063,202.78,202.76,6.54488038]
[1739213227796,0.063,202.78,202.77,6.54488038]
[1739213229485,0.063,202.78,202.77,11.47648038]
[1739213230257,0.063,202.78,202.77,245.28832891]
[1739213230463,0.063,202.79,202.78,13.41184853]
[1739213230766,0.063,202.79,202.78,19.95672891]
[1739213232093,11.47268038,202.93,202.81,33.41184853]
[1739213232314,4.9281,202.92,202.85,6.54488038]
[1739213232603,4.9283,202.91,202.85,6.54488038]
[1739213235203,4.928,202.92,202.85,224.94488038]
[1739213235405,11.47288038,202.92,202.85,224.94488038]
[1739213235905,4.928,202.92,202.85,224.94488038]
[1739213237302,6.54488038,202.95,202.85,229.87458038]
[1739213238407,4.9275,202.94,202.85,229.87458038]
[1739213241216,6.54488038,202.94,202.85,229.87458038]
[1739213241781,6.54488038,202.95,202.85,229.87458038]
[1739213242412,4.9275,202.94,202.85,229.87458038]
[1739213244606,6.54488038,202.92,202.85,224.94488038]
[1739213244784,6.54488038,202.92,202.85,218.4]
[1739213244979,8.08328038,202.92,202.85,218.4]
[1739213245684,4.9282,202.91,202.85,224.94488038]
[1739213245905,6.4664,202.92,202.85,229.87458038]
[1739213246110,1.5384,202.92,202.85,229.87458038]
[1739213248215,6.4665,202.92,202.85,229.87458038]
[1739213251717,1.5384,202.92,202.85,243.28642891]
[1739213253318,1.5384,202.92,202.85,229.87458038]
[1739213256302,11.47208038,202.96,202.85,230.87458038]
[1739213256516,4.9275,202.95,202.85,230.87458038]
[1739213257727,4.9275,202.95,202.85,244.28642891]
[1739213257918,11.47168038,202.97,202.85,244.28642891]
[1739213259130,4.9268,202.97,202.85,244.28642891]
[1739213261323,4.9268,202.97,202.88,20.0]
[1739213261530,8.08328038,202.98,202.94,6.54488038]
[1739213261531,1.5384,202.98,202.94,6.54488038]
[1739213261822,0.063,202.99,202.97,6.54488038]
[1739213262004,0.063,202.99,202.98,6.54488038]
[1739213263022,0.063,202.99,202.94,224.94488038]
[1739213263429,0.063,203.0,202.94,224.94488038]
[1739213263430,0.063,203.07,203.01,2.0]
[1739213263600,7.7010517,203.12,203.01,2.0]
[1739213263601,7.7010517,203.12,203.08,1.0]
[1739213263803,7.7010517,203.12,203.09,13.41184853]
[1739213264007,7.7010517,203.12,203.09,6.54488038]
[1739213265733,0.03,203.15,203.09,19.95672891]
[1739213268022,0.03,203.15,203.09,157.15672891]
[1739213268210,0.03,203.15,203.09,143.74488038]
[1739213268811,0.03,203.15,203.09,157.15672891]
[1739213271007,0.03,203.15,203.09,162.08062891]
[1739213273338,0.03,203.15,203.11,13.41184853]
[1739213273519,0.03,203.15,203.12,6.54488038]
[1739213274334,0.03,203.15,203.12,238.35672891]
[1739213274634,0.03,203.15,203.13,13.41184853]
[1739213274807,0.03,203.15,203.14,6.54488038]
[1739213275005,0.03,203.15,203.14,11.46758038]
[1739213277513,0.03,203.15,203.13,218.4]
[1739213281644,6.54488038,203.14,203.13,81.2]
[1739213283643,11.46758038,203.14,203.13,81.2]
[1739213284814,38.10921744,203.14,203.05,218.4]
[1739213285019,6.54488038,203.09,203.05,218.4]
[1739213285542,4.924,203.09,203.05,218.4]
[1739213285744,11.46888038,203.09,203.05,218.4]
[1739213285916,6.54488038,203.11,203.05,218.4]
[1739213286248,11.46758038,203.14,203.06,6.54488038]
[1739213286413,11.46758038,203.14,203.06,224.94488038]
[1739213287330,6.54488038,203.13,203.06,229.86948038]
[1739213287648,6.54488038,203.12,203.06,223.3246]
[1739213287951,6.54488038,203.12,203.06,218.4]
[1739213288243,6.54488038,203.12,203.06,223.3246]
[1739213288441,6.54488038,203.12,203.06,218.4]
[1739213289043,6.54488038,203.13,203.06,223.3246]
[1739213289249,13.03598038,203.15,203.08,6.54488038]
[1739213290142,13.03598038,203.15,203.06,218.4]
[1739213290143,6.54488038,203.13,203.06,224.94488038]
[1739213290344,6.54488038,203.11,203.06,218.4]
[1739213290720,6.54488038,203.1,203.06,218.4]
[1739213291445,4.9237,203.1,203.06,218.4]
[1739213293237,6.54488038,203.09,203.06,218.4]
[1739213293441,6.54488038,203.07,203.06,81.263]
[1739213293935,11.46898038,203.08,203.06,81.263]
[1739213294131,4.9237,203.1,203.06,81.263]
[1739213294640,11.46858038,203.1,203.06,81.263]
[1739213295154,6.54488038,203.12,203.06,81.263]
[1739213295339,11.46758038,203.14,203.06,225.00788038]
[1739213295659,11.46758038,203.14,203.06,229.93248038]
[1739213295827,6.54488038,203.12,203.06,218.463]
[1739213296752,4.9227,203.14,203.06,218.463]
[1739213296753,6.54488038,203.1,203.06,218.463]
[1739213297326,4.9239,203.09,203.06,218.463]
[1739213299750,6.54488038,203.12,203.06,218.463]
[1739213299957,6.54488038,203.13,203.06,218.463]
[1739213300958,4.9231,203.12,203.06,225.00788038]
[1739213301259,4.9231,203.12,203.06,218.463]
[1739213301451,11.46798038,203.12,203.06,218.463]
[1739213303661,4.9229,203.13,203.07,6.54488038]
[1739213304670,11.46778038,203.13,203.06,225.00788038]
[1739213304957,11.46778038,203.13,203.06,218.463]
[1739213305661,11.49778038,203.13,203.06,218.463]
[1739213308759,0.03,203.13,203.07,6.54488038]
[1739213309483,4.9529,203.13,203.07,6.54488038]
[1739213310143,0.03,203.13,203.06,218.463]
[1739213310347,6.54488038,203.11,203.06,218.463]
[1739213312667,4.9236,203.1,203.06,218.463]
[1739213316277,4.9236,203.1,203.06,218.463]
[1739213316448,6.54488038,203.09,203.06,218.463]
[1739213316652,6.54488038,203.08,203.06,218.463]
[1739213316974,6.54488038,203.07,203.06,218.463]
[1739213317167,6.54488038,203.07,203.06,0.063]
[1739213317667,19.95672891,203.07,203.06,0.063]
[1739213317855,20.88026043,203.07,203.06,0.063]
[1739213318866,24.88112891,203.07,203.06,0.063]
[1739213321762,11.46928038,203.07,203.06,0.063]
[1739213323374,6.54488038,203.07,203.06,0.063]
[1739213324670,6.54488038,203.08,203.06,0.063]
[1739213324979,6.54488038,203.1,203.06,0.063]
[1739213325275,6.54488038,203.12,203.06,137.263]
[1739213325460,4.9531,203.13,203.06,137.263]
[1739213325461,0.03,203.13,203.06,225.00788038]
[1739213325976,6.57488038,203.13,203.06,225.00788038]
[1739213326580,6.57488038,203.13,203.07,4.9244]
[1739213327577,6.57488038,203.13,203.07,223.3244]
[1739213329182,11.49778038,203.13,203.07,218.4]
[1739213330158,6.57488038,203.13,203.07,223.3243]
[1739213331082,0.03,203.13,203.08,6.54488038]
[1739213333378,0.03,203.13,203.08,11.46888038]
[1739213335785,0.03,203.13,203.08,229.86888038]
[1739213336186,0.03,203.13,203.1,6.54488038]
[1739213337296,0.03,203.13,203.11,4.9234]
[1739213337492,0.03,203.13,203.11,223.3234]
[1739213339189,0.03,203.13,203.11,218.4]
[1739213340994,0.03,203.13,203.11,223.3234]
[1739213345804,0.03,203.13,203.11,229.86828038]
[1739213346812,0.03,203.13,203.12,6.54488038]
[1739213347710,0.03,203.13,203.12,10.46798038]
[1739213348403,0.03,203.13,203.12,218.4]
[1739213348890,0.03,203.13,203.12,223.3231]
[1739213349082,0.03,203.13,203.12,229.86798038]
[1739213353792,0.03,203.13,203.12,243.27982891]
[1739213356007,0.03,203.13,203.12,244.27982891]
[1739213356203,0.03,203.13,203.12,245.27982891]
[1739213356410,0.03,203.13,203.12,246.88942891]
[1739213356607,0.03,203.15,203.14,34.41184853]
[1739213356901,0.03,203.15,203.14,40.95672891]
[1739213357105,0.0001,203.15,203.14,259.35672891]
[1739213357297,0.0001,203.15,203.14,266.89972891]
[1739213357611,0.0001,203.15,203.14,268.11701882]
[1739213358210,0.0001,203.15,203.14,273.03971882]
[1739213358509,0.0001,203.15,203.14,271.82242891]
[1739213360114,0.063,203.17,203.15,94.61174853]
[1739213361312,0.063,203.17,203.16,4.9222]
[1739213361502,0.063,203.17,203.16,229.86698038]
[1739213362513,0.063,203.17,203.16,243.27882891]
[1739213364118,0.063,203.17,203.16,229.86698038]
[1739213364327,0.063,203.17,203.16,218.3999]
[1739213365116,0.063,203.17,203.16,223.3221]
[1739213374721,0.063,203.17,203.16,218.3999]
[1739213375024,6.60788038,203.17,203.16,218.3999]
[1739213375220,0.063,203.17,203.16,218.3999]
[1739213375631,0.063,203.17,203.16,223.3221]
[1739213376216,0.063,203.17,203.16,236.73394853]
[1739213377726,0.063,203.17,203.16,223.3221]
[1739213378429,0.063,203.17,203.16,218.3999]
[1739213380835,6.60788038,203.17,203.16,81.1999]
[1739213382537,11.52978038,203.17,203.15,0.063]
[1739213382722,6.54488038,203.16,203.15,0.063]
[1739213387147,11.46708038,203.16,203.15,0.063]
[1739213387840,24.87892891,203.16,203.15,0.063]
[1739213390954,11.46708038,203.16,203.15,0.063]
[1739213391244,6.54488038,203.16,203.15,0.063]
[1739213393147,11.46708038,203.16,203.15,0.063]
[1739213395534,24.87892891,203.16,203.15,0.063]
[1739213396130,11.46708038,203.16,203.15,0.063]
[1739213397653,24.87892891,203.16,203.15,0.063]
[1739213399259,4.9222,203.16,203.15,0.063]
[1739213400662,6.60788038,203.17,203.15,0.063]
[1739213401060,0.03,203.16,203.15,0.063]
[1739213402046,0.95293756,203.16,203.15,0.063]
[1739213402251,14.36478609,203.16,203.15,0.063]
[1739213403750,24.56201585,203.16,203.15,0.063]
[1739213404062,29.48421585,203.16,203.15,0.063]
[1739213408680,20.0,203.13,203.12,0.063]
[1739213408967,46.05421401,203.13,203.06,81.2629]
[1739213409165,10.19722976,203.07,203.06,0.063]
[1739213411049,15.12162976,203.07,203.06,0.063]
[1739213414486,10.19722976,203.07,203.06,0.063]
[1739213415388,28.53347829,203.07,203.06,0.063]
[1739213416973,15.12162976,203.07,203.06,0.063]
[1739213417278,28.53347829,203.07,203.06,0.063]
[1739213421288,15.12162976,203.07,203.06,0.063]
[1739213422089,10.19722976,203.07,203.06,0.063]
[1739213422289,10.19722976,203.09,203.06,0.063]
[1739213422459,10.19722976,203.11,203.06,137.263]
[1739213422802,10.19722976,203.11,203.06,218.4629]
[1739213423385,10.19722976,203.11,203.06,223.3875]
[1739213423760,10.19722976,203.11,203.06,218.4629]
[1739213423961,10.19722976,203.09,203.06,218.4629]
[1739213424981,0.03,203.12,203.06,218.4629]
[1739213425393,0.03,203.12,203.06,233.58452976]
[1739213425763,0.03,203.12,203.06,229.91084724]
[1739213434316,0.03,203.12,203.08,6.52354724]
[1739213434512,0.03,203.12,203.1,6.52354724]
[1739213435393,0.03,203.12,203.11,4.9234]
[1739213435590,0.03,203.12,203.11,218.3999]
[1739213440315,0.03,203.12,203.11,81.1999]
[1739213451013,0.03,203.12,203.11,86.1233]
[1739213451219,0.03,203.12,203.11,87.6581]
[1739213452121,0.03,203.12,203.11,238.26994853]
[1739213452325,0.03,203.12,203.11,244.28734853]
[1739213454125,0.03,203.12,203.11,230.8755]
[1739213454315,0.03,203.12,203.11,225.9521]
[1739213457331,0.03,203.12,203.11,224.4173]
[1739213458704,0.03,203.12,203.11,224.4803]
[1739213459433,0.03,203.12,203.11,218.4629]
[1739213459931,6.55354724,203.12,203.11,218.4629]
[1739213460909,6.55354724,203.12,203.11,0.063]
[1739213461718,11.47664724,203.12,203.11,0.063]
[1739213476532,24.88849577,203.12,203.11,0.063]
[1739213477442,13.41184853,203.11,203.06,81.2629]
[1739213477640,6.52354724,203.07,203.06,0.063]
[1739213478942,11.44794724,203.07,203.06,0.063]
[1739213482345,24.85979577,203.07,203.06,0.063]
[1739213482534,50.95398473,203.07,203.06,0.063]
[1739213483924,24.85979577,203.07,203.06,0.063]
[1739213484446,50.95398473,203.07,203.06,0.063]
[1739213485542,24.85979577,203.07,203.06,0.063]
[1739213486148,25.78338798,203.07,203.06,0.063]
[1739213487647,24.85979577,203.07,203.06,0.063]
[1739213488548,50.95398473,203.07,203.06,0.063]
[1739213490943,13.41184853,203.06,203.01,81.1999]
[1739213491127,6.52354724,203.02,202.96,226.15]
[1739213491334,6.52354724,202.99,202.96,226.15]
[1739213493049,6.52354724,203.0,202.96,231.077]
[1739213493447,6.52354724,203.02,202.96,231.077]
[1739213494040,6.52354724,203.07,202.99,6.52354724]
[1739213494266,0.92353587,203.1,203.0,6.52354724]
[1739213494267,6.52354724,203.08,203.0,6.52354724]
[1739213494755,0.03,203.06,203.0,6.52354724]
[1739213494937,0.03,203.06,203.01,4.9258]
[1739213496659,0.03,203.06,203.03,8.09744724]
[1739213496856,0.03,203.06,203.05,4.9248]
[1739213497166,0.03,203.06,203.05,223.3247]
[1739213497577,0.03,203.06,203.05,229.84824724]
[1739213498146,0.03,203.06,203.05,223.3247]
[1739213498850,0.03,203.06,203.05,229.84824724]
[1739213502658,0.03,203.06,203.05,218.3999]
[1739213503234,0.03,203.06,203.05,223.3247]
[1739213505963,0.03,203.06,203.05,218.3999]
[1739213507056,0.03,203.06,203.05,223.3247]
[1739213507452,0.03,203.06,203.05,218.3999]